fUST/lending_fUST_20260111
["ID","MTS","AMOUNT","RATE_DAILY","PERIOD"]
[401300792,1768118067682,-203.9712956,8.571e-05,2]
[401300793,1768118067714,-500.0,8.571e-05,2]
[401300794,1768118067746,-500.0,8.571e-05,2]
[401300795,1768118067780,-500.0,8.571e-05,2]
[401300796,1768118067812,-296.2933416,8.571e-05,2]
[401300797,1768118067847,-203.7066584,8.571e-05,2]
[401300798,1768118067879,-593.48293425,8.571e-05,2]
[401300799,1768118067911,-500.0,8.571e-05,2]
[401300800,1768118067944,-500.0,8.571e-05,2]
[401300801,1768118067975,-500.0,8.571e-05,2]
[401300802,1768118068010,-500.0,8.571e-05,2]
[401300803,1768118068044,-500.0,8.571e-05,2]
[401300804,1768118068078,-500.0,8.571e-05,2]
[401300805,1768118068112,-500.0,8.571e-05,2]
[401300806,1768118068147,-500.0,8.571e-05,2]
[401300807,1768118068192,-500.0,8.571e-05,2]
[401300808,1768118068227,-500.0,8.571e-05,2]
[401300809,1768118068262,-500.0,8.571e-05,2]
[401300810,1768118068298,-500.0,8.571e-05,2]
[401300811,1768118068420,-500.0,8.571e-05,2]
[401300812,1768118068454,-255.78870336,8.571e-05,2]
[401300813,1768118068489,-500.0,8.571e-05,2]
[401300814,1768118068522,-500.0,8.571e-05,2]
[401300815,1768118068556,-500.0,8.571e-05,2]
[401300816,1768118068590,-500.0,8.571e-05,2]
[401300817,1768118068796,-500.0,8.571e-05,2]
[401300818,1768118068828,-500.0,8.571e-05,2]
[401300819,1768118068859,-500.0,8.571e-05,2]
[401300820,1768118068890,-500.0,8.571e-05,2]
[401300821,1768118068921,-500.0,8.571e-05,2]
[401300822,1768118068951,-500.0,8.571e-05,2]
[401300823,1768118068981,-500.0,8.571e-05,2]
[401300824,1768118069017,-500.0,8.571e-05,2]
[401300825,1768118069054,-500.0,8.571e-05,2]
[401300826,1768118069086,-500.0,8.571e-05,2]
[401300827,1768118069276,-500.0,8.571e-05,2]
[401300828,1768118069309,-500.0,8.571e-05,2]
[401300829,1768118069343,-500.0,8.571e-05,2]
[401300830,1768118069375,-500.0,8.571e-05,2]
[401300831,1768118069407,-500.0,8.571e-05,2]
[401300832,1768118069441,-212.91856618,8.571e-05,2]
[401300833,1768118069474,-500.0,8.571e-05,2]
[401300834,1768118069507,-500.0,8.571e-05,2]
[401300835,1768118069540,-500.0,8.571e-05,2]
[401300836,1768118069573,-500.0,8.571e-05,2]
[401300837,1768118069697,-74.17286764,8.571e-05,2]
[401300838,1768118069922,-425.82713236,8.571e-05,2]
[401300839,1768118069952,-150.44574422,8.571e-05,2]
[401300840,1768118077960,162.39,7.45e-05,2]
[401300841,1768118078375,243.58,8.07e-05,2]
[401300842,1768118102161,300.0,8.571e-05,2]
[401300843,1768118102226,300.0,8.571e-05,2]
[401300845,1768118141974,500.0,8.571e-05,2]
[401300846,1768118142015,500.0,8.571e-05,2]
[401300847,1768118142063,500.0,8.571e-05,2]
[401300848,1768118142107,500.0,8.571e-05,2]
[401300849,1768118142153,500.0,8.571e-05,2]
[401300850,1768118142194,500.0,8.571e-05,2]
[401300851,1768118142228,500.0,8.571e-05,2]
[401300852,1768118142270,500.0,8.571e-05,2]
[401300853,1768118142315,500.0,8.571e-05,2]
[401300854,1768118142355,500.0,8.571e-05,2]
[401300855,1768118142410,500.0,8.571e-05,2]
[401300856,1768118142456,500.0,8.571e-05,2]
[401300857,1768118142502,331.69468799,8.571e-05,2]
[401300858,1768118142550,500.0,8.571e-05,2]
[401300859,1768118142599,500.0,8.571e-05,2]
[401300860,1768118142649,500.0,8.571e-05,2]
[401300861,1768118142738,9.79955885,8.571e-05,2]
[401300862,1768118142806,490.20044115,8.571e-05,2]
[401300863,1768118142895,500.0,8.571e-05,2]
[401300864,1768118142991,500.0,8.571e-05,2]
[401300865,1768118143085,500.0,8.571e-05,2]
[401300866,1768118143172,500.0,8.571e-05,2]
[401300867,1768118143262,500.0,8.571e-05,2]
[401300868,1768118143349,500.0,8.571e-05,2]
[401300869,1768118143440,500.0,8.571e-05,2]
[401300870,1768118143530,500.0,8.571e-05,2]
[401300871,1768118143620,500.0,8.571e-05,2]
[401300872,1768118143708,500.0,8.571e-05,2]
[401300873,1768118143800,500.0,8.571e-05,2]
[401300874,1768118143895,500.0,8.571e-05,2]
[401300875,1768118143978,500.0,8.571e-05,2]
[401300876,1768118144058,500.0,8.571e-05,2]
[401300877,1768118144148,500.0,8.571e-05,2]
[401300878,1768118144235,500.0,8.571e-05,2]
[401300879,1768118144328,500.0,8.571e-05,2]
[401300880,1768118144415,500.0,8.571e-05,2]
[401300881,1768118144497,500.0,8.571e-05,2]
[401300882,1768118144578,9.80955885,8.571e-05,2]
[401300883,1768118144645,490.19044115,8.571e-05,2]
[401300884,1768118144741,500.0,8.571e-05,2]
[401300885,1768118144827,500.0,8.571e-05,2]
[401300886,1768118144905,500.0,8.571e-05,2]
[401300887,1768118144987,500.0,8.571e-05,2]
[401300888,1768118145064,500.0,8.571e-05,2]
[401300889,1768118145153,500.0,8.571e-05,2]
[401300890,1768118145238,500.0,8.571e-05,2]
[401300891,1768118145335,500.0,8.571e-05,2]
[401300892,1768118145416,500.0,8.571e-05,2]
[401300893,1768118145501,249.48594023,8.571e-05,2]
[401300894,1768118145588,500.0,8.571e-05,2]
[401300895,1768118145670,500.0,8.571e-05,2]
[401300896,1768118145749,500.0,8.571e-05,2]
[401300897,1768118145837,500.0,8.571e-05,2]
[401300898,1768118145919,500.0,8.571e-05,2]
[401300899,1768118146195,500.0,8.571e-05,2]
[401300900,1768118146275,500.0,8.571e-05,2]
[401300901,1768118146378,500.0,8.571e-05,2]
[401300902,1768118146457,500.0,8.571e-05,2]
[401300903,1768118146540,260.33361862,8.571e-05,2]
[401300904,1768118146608,239.66638138,8.571e-05,2]
[401300905,1768118146753,500.0,8.571e-05,2]
[401300906,1768118155927,157.99,7.13e-05,2]
[401300907,1768118156329,236.98,7.724e-05,2]
[401300908,1768118156735,315.97,8.318e-05,2]
[401300909,1768118162805,300.0,8.571e-05,2]
[401300910,1768118170274,537.87900397,8.571e-05,2]
[401300911,1768118170355,500.0,8.571e-05,2]
[401300912,1768118170437,500.0,8.571e-05,2]
[401300913,1768118170513,252.83611793,8.571e-05,2]
[401300914,1768118170598,511.72017523,8.571e-05,2]
[401300915,1768118170683,500.0,8.571e-05,2]
[401300916,1768118170782,500.0,8.571e-05,2]
[401300917,1768118170865,511.72017523,8.571e-05,2]
[401300918,1768118171007,511.72017523,8.571e-05,2]
[401300919,1768118171089,500.0,8.571e-05,2]
[401300920,1768118171170,500.0,8.571e-05,2]
[401300921,1768118171461,511.72017523,8.571e-05,2]
[401300922,1768118171542,500.0,8.571e-05,2]
[401300923,1768118171626,500.0,8.571e-05,2]
[401300924,1768118171705,500.0,8.571e-05,2]
[401300925,1768118178276,500.0,8.571e-05,2]
[401300926,1768118178381,500.0,8.571e-05,2]
[401300927,1768118178467,511.72017523,8.571e-05,2]
[401300928,1768118178550,297.74400195,8.571e-05,2]
[401300929,1768118178619,202.25599805,8.571e-05,2]
[401300930,1768118178700,500.0,8.571e-05,2]
[401300931,1768118178783,511.72017523,8.571e-05,2]
[401300932,1768118178863,511.72017523,8.571e-05,2]
[401300933,1768118178945,500.0,8.571e-05,2]
[401300934,1768118179038,500.0,8.571e-05,2]
[401300935,1768118179123,511.72017523,8.571e-05,2]
[401300936,1768118179213,511.72017523,8.571e-05,2]
[401300937,1768118179297,511.72017523,8.571e-05,2]
[401300938,1768118179386,500.0,8.571e-05,2]
[401300939,1768118179501,500.0,8.571e-05,2]
[401300940,1768118179615,511.72017523,8.571e-05,2]
[401300941,1768118179720,511.72017523,8.571e-05,2]
[401300942,1768118179823,511.72017523,8.571e-05,2]
[401300943,1768118179920,500.0,8.571e-05,2]
[401300944,1768118180006,511.72017523,8.571e-05,2]
[401300945,1768118180094,500.0,8.571e-05,2]
[401300946,1768118180214,500.0,8.571e-05,2]
[401300947,1768118180332,500.0,8.571e-05,2]
[401300948,1768118180420,500.0,8.571e-05,2]
[401300949,1768118180498,192.27242488,8.571e-05,2]
[401300950,1768118180565,213.51627848,8.571e-05,2]
[401300953,1768118222669,300.0,8.571e-05,2]
[401300954,1768118283769,300.0,8.571e-05,2]
[401300955,1768118342834,300.0,8.571e-05,2]
[401300958,1768118371487,1000.0,8.571e-05,2]
[401300959,1768118372563,1000.0,8.571e-05,2]
[401300961,1768118373624,1000.0,8.571e-05,2]
[401300962,1768118374687,1002.0302105,8.571e-05,2]
[401300965,1768118389004,223.44,7.026e-05,2]
[401300966,1768118389479,335.16,7.611e-05,2]
[401300967,1768118389902,446.88,8.197e-05,2]
[401300972,1768118403148,3878.98351102,7.908e-05,2]
[401300973,1768118403228,359.52710668,7.908e-05,2]
[401300974,1768118403761,1200.0,8.571e-05,2]
[401300975,1768118404772,672.9,5e-05,2]
[401300976,1768118405354,672.9,5.5e-05,2]
[401300977,1768118405858,672.9,6e-05,2]
[401300978,1768118406343,672.9,6.5e-05,2]
[401300979,1768118406811,672.9,7.1e-05,2]
[401300981,1768118407498,672.9,7.6e-05,2]
[401300982,1768118407979,672.9,8.1e-05,2]
[401300987,1768118416490,151.0,8.571e-05,2]
[401300988,1768118417400,151.61039102,8.571e-05,2]
[401300996,1768118436488,500.0,8.571e-05,2]
[401300997,1768118436576,500.0,8.571e-05,2]
[401300998,1768118436656,500.0,8.571e-05,2]
[401300999,1768118436737,500.0,8.571e-05,2]
[401301000,1768118436836,500.0,8.571e-05,2]
[401301001,1768118436916,500.0,8.571e-05,2]
[401301002,1768118437001,427.5725023,8.571e-05,2]
[401301003,1768118437073,72.4274977,8.571e-05,2]
[401301004,1768118437173,500.0,8.571e-05,2]
[401301005,1768118437263,500.0,8.571e-05,2]
[401301006,1768118437367,500.0,8.571e-05,2]
[401301007,1768118437452,500.0,8.571e-05,2]
[401301008,1768118437530,500.0,8.571e-05,2]
[401301009,1768118437609,500.0,8.571e-05,2]
[401301010,1768118437682,500.0,8.571e-05,2]
[401301011,1768118437759,500.0,8.571e-05,2]
[401301012,1768118437838,500.0,8.571e-05,2]
[401301013,1768118437912,500.0,8.571e-05,2]
[401301014,1768118437987,500.0,8.571e-05,2]
[401301015,1768118438186,500.0,8.571e-05,2]
[401301016,1768118438273,500.0,8.571e-05,2]
[401301017,1768118438356,500.0,8.571e-05,2]
[401301018,1768118438445,362.44590417,8.571e-05,2]
[401301019,1768118438538,500.0,8.571e-05,2]
[401301020,1768118438621,500.0,8.571e-05,2]
[401301021,1768118438708,500.0,8.571e-05,2]
[401301022,1768118438810,500.0,8.571e-05,2]
[401301023,1768118438894,500.0,8.571e-05,2]
[401301025,1768118438978,65.13659813,8.571e-05,2]
[401301026,1768118439041,434.86340187,8.571e-05,2]
[401301027,1768118439114,500.0,8.571e-05,2]
[401301028,1768118439195,500.0,8.571e-05,2]
[401301029,1768118439270,500.0,8.571e-05,2]
[401301030,1768118439353,500.0,8.571e-05,2]
[401301031,1768118439437,500.0,8.571e-05,2]
[401301032,1768118439522,500.0,8.571e-05,2]
[401301033,1768118439604,500.0,8.571e-05,2]
[401301034,1768118439691,500.0,8.571e-05,2]
[401301035,1768118439774,500.0,8.571e-05,2]
[401301036,1768118439854,500.0,8.571e-05,2]
[401301048,1768118469597,500.0,8.571e-05,2]
[401301049,1768118469690,500.0,8.571e-05,2]
[401301050,1768118469776,500.0,8.571e-05,2]
[401301051,1768118469859,500.0,8.571e-05,2]
[401301052,1768118469934,500.0,8.571e-05,2]
[401301053,1768118470010,500.0,8.571e-05,2]
[401301054,1768118470093,500.0,8.571e-05,2]
[401301055,1768118470188,500.0,8.571e-05,2]
[401301056,1768118470267,500.0,8.571e-05,2]
[401301057,1768118470350,65.14659813,8.571e-05,2]
[401301058,1768118470414,434.85340187,8.571e-05,2]
[401301059,1768118470498,500.0,8.571e-05,2]
[401301060,1768118470574,500.0,8.571e-05,2]
[401301061,1768118470676,428.01360241,8.571e-05,2]
[401301062,1768118470759,500.0,8.571e-05,2]
[401301064,1768118470845,500.0,8.571e-05,2]
[401301065,1768118470944,500.0,8.571e-05,2]
[401301066,1768118471031,500.0,8.571e-05,2]
[401301067,1768118471107,500.0,8.571e-05,2]
[401301068,1768118471189,500.0,8.571e-05,2]
[401301069,1768118471264,500.0,8.571e-05,2]
[401301070,1768118471344,500.0,8.571e-05,2]
[401301071,1768118471434,500.0,8.571e-05,2]
[401301072,1768118471519,500.0,8.571e-05,2]
[401301073,1768118471598,500.0,8.571e-05,2]
[401301074,1768118471678,500.0,8.571e-05,2]
[401301075,1768118471759,500.0,8.571e-05,2]
[401301076,1768118471959,500.0,8.571e-05,2]
[401301077,1768118472039,500.0,8.571e-05,2]
[401301078,1768118472127,500.0,8.571e-05,2]
[401301079,1768118472231,137.14299572,8.571e-05,2]
[401301081,1768118472295,362.85700428,8.571e-05,2]
[401301082,1768118472383,500.0,8.571e-05,2]
[401301083,1768118472462,500.0,8.571e-05,2]
[401301086,1768118481993,500.0,8.571e-05,2]
[401301087,1768118482092,500.0,8.571e-05,2]
[401301088,1768118482182,500.0,8.571e-05,2]
[401301089,1768118482268,500.0,8.571e-05,2]
[401301090,1768118482351,500.0,8.571e-05,2]
[401301091,1768118482440,500.0,8.571e-05,2]
[401301092,1768118482521,600.0,8.571e-05,2]
[401301095,1768118506086,253.032,8.4e-05,2]
[401301096,1768118512278,500.0,8.571e-05,2]
[401301097,1768118512366,500.0,8.571e-05,2]
[401301098,1768118512442,500.0,8.571e-05,2]
[401301099,1768118512516,500.0,8.571e-05,2]
[401301100,1768118512588,382.95208453,8.571e-05,2]
[401301101,1768118512666,500.0,8.571e-05,2]
[401301102,1768118512738,500.0,8.571e-05,2]
[401301103,1768118512807,500.0,8.571e-05,2]
[401301104,1768118512875,500.0,8.571e-05,2]
[401301105,1768118512945,401.16891119,8.571e-05,2]
[401301106,1768118513003,98.83108881,8.571e-05,2]
[401301107,1768118527792,500.0,8.571e-05,2]
[401301108,1768118527899,500.0,8.571e-05,2]
[401301109,1768118528038,500.0,8.571e-05,2]
[401301110,1768118528152,500.0,8.571e-05,2]
[401301111,1768118528274,500.0,8.571e-05,2]
[401301112,1768118528379,500.0,8.571e-05,2]
[401301113,1768118528473,500.0,8.571e-05,2]
[401301114,1768118528709,500.0,8.571e-05,2]
[401301115,1768118528795,500.0,8.571e-05,2]
[401301116,1768118528893,500.0,8.571e-05,2]
[401301117,1768118528980,500.0,8.571e-05,2]
[401301118,1768118529068,500.0,8.571e-05,2]
[401301119,1768118529157,500.0,8.571e-05,2]
[401301120,1768118529260,500.0,8.571e-05,2]
[401301121,1768118529375,500.0,8.571e-05,2]
[401301122,1768118529478,500.0,8.571e-05,2]
[401301123,1768118529658,500.0,8.571e-05,2]
[401301124,1768118529759,500.0,8.571e-05,2]
[401301125,1768118529862,500.0,8.571e-05,2]
[401301126,1768118529960,401.17891119,8.571e-05,2]
[401301127,1768118530026,98.82108881,8.571e-05,2]
[401301128,1768118530149,500.0,8.571e-05,2]
[401301129,1768118530273,500.0,8.571e-05,2]
[401301130,1768118530393,500.0,8.571e-05,2]
[401301131,1768118530547,500.0,8.571e-05,2]
[401301132,1768118530704,500.0,8.571e-05,2]
[401301133,1768118530807,500.0,8.571e-05,2]
[401301134,1768118531424,500.0,8.571e-05,2]
[401301135,1768118531514,500.0,8.571e-05,2]
[401301136,1768118545713,500.0,8.571e-05,2]
[401301137,1768118545799,500.0,8.571e-05,2]
[401301138,1768118545885,500.0,8.571e-05,2]
[401301139,1768118546002,481.70920772,8.571e-05,2]
[401301140,1768118546089,500.0,8.571e-05,2]
[401301141,1768118546181,500.0,8.571e-05,2]
[401301142,1768118546283,500.0,8.571e-05,2]
[401301143,1768118546377,500.0,8.571e-05,2]
[401301160,1768118689068,223.25,6.689e-05,2]
[401301161,1768118689500,334.88,7.247e-05,2]
[401301162,1768118689938,446.5,7.804e-05,2]
[401301163,1768118690375,558.13,8.361e-05,2]
[401301179,1768118767446,183.47,6.154e-05,2]
[401301180,1768118767897,173.24970347,6.434e-05,2]
[401301181,1768118767967,101.96029653,6.434e-05,2]
[401301182,1768118768328,366.94,6.714e-05,2]
[401301183,1768118768859,458.68,6.994e-05,2]
[401301184,1768118769321,550.41,7.273e-05,2]
[401301185,1768118769753,642.15,7.553e-05,2]
[401301186,1768118770165,733.89,7.833e-05,2]
[401301187,1768118770677,825.62,8.113e-05,2]
[401301188,1768118771122,917.36,8.392e-05,2]
[401301193,1768118806392,5402.99970347,8.359e-05,2]
[401301194,1768118806454,10000.01,8.359e-05,2]
[401301195,1768118806514,10000.01,8.359e-05,2]
[401301196,1768118806573,10000.01,8.359e-05,2]
[401301197,1768118806637,10000.01,8.359e-05,2]
[401301198,1768118806694,10000.01,8.359e-05,2]
[401301199,1768118806750,6883.63144503,8.359e-05,2]
[401301200,1768118820326,713.0,0.00030137,120]
[401301201,1768118880125,647.1,5.994e-05,2]
[401301202,1768118880411,647.1,5.994e-05,2]
[401301203,1768118918534,248.85,5.907e-05,2]
[401301204,1768118918955,497.69,6.188e-05,2]
[401301205,1768118919375,746.54,6.469e-05,2]
[401301206,1768118919820,329.09855497,6.751e-05,2]
[401301207,1768118919890,666.29144503,6.751e-05,2]
[401301208,1768118920220,1244.23,7.032e-05,2]
[401301209,1768118920676,1493.08,7.313e-05,2]
[401301210,1768118921141,1741.92,7.595e-05,2]
[401301211,1768118921585,1990.77,7.876e-05,2]
[401301212,1768118921973,2239.62,8.157e-05,2]
[401301213,1768118922390,624.09855497,8.438e-05,2]
[401301214,1768118922451,1864.36144503,8.438e-05,2]
[401301215,1768118978229,8135.64855497,8.472e-05,2]
[401301216,1768118978290,10000.01,8.472e-05,2]
[401301217,1768118978354,10000.01,8.472e-05,2]
[401301218,1768118978421,10000.01,8.472e-05,2]
[401301219,1768118978491,10000.01,8.472e-05,2]
[401301220,1768118978557,10000.01,8.472e-05,2]
[401301221,1768118978618,10000.01,8.472e-05,2]
[401301222,1768118978676,10000.01,8.472e-05,2]
[401301223,1768118978734,10000.01,8.472e-05,2]
[401301224,1768118978790,10000.01,8.472e-05,2]
[401301225,1768118991417,249.78,6.154e-05,2]
[401301226,1768118991879,374.67,6.433e-05,2]
[401301227,1768118992288,499.56,6.713e-05,2]
[401301228,1768118992708,624.45,6.993e-05,2]
[401301229,1768118996950,-211.41602581,7.273e-05,2]
[401301230,1768118999030,-479.57405048,7.273e-05,2]
[401301231,1768119001227,-58.34992371,7.273e-05,2]
[401301232,1768119001257,-414.92608397,7.552e-05,2]
[401301233,1768119003421,-342.87325689,7.552e-05,2]
[401301234,1768119006039,-116.43065914,7.552e-05,2]
[401301235,1768119006063,-62.31098903,7.552e-05,2]
[401301236,1768119008625,-228.08421647,7.552e-05,2]
[401301237,1768119010731,-235.6047945,7.552e-05,2]
[401301238,1768119010757,-264.3952055,7.832e-05,2]
[401301239,1768119012330,-164.17223265,7.692e-05,2]
[401301240,1768119013932,-259.99040964,7.692e-05,2]
[401301241,1768119013960,-40.00959036,7.832e-05,2]
[401301242,1768119016684,-436.42864136,7.832e-05,2]
[401301243,1768119019629,-258.29656278,7.832e-05,2]
[401301244,1768119019659,-165.3036712,8.112e-05,2]
[401301245,1768119023047,-421.40025926,8.112e-05,2]
[401301246,1768119024542,-231.36964492,8.112e-05,2]
[401301247,1768119026582,-198.3434654,8.112e-05,2]
[401301260,1768119031975,-107.60295922,8.112e-05,2]
[401301262,1768119031985,-746.48543681,8.391e-05,2]
[401301263,1768119032020,-458.23756058,8.391e-05,2]
[401301268,1768119038176,-44.18700261,8.391e-05,2]
[401301269,1768119038187,-1200.0,8.471e-05,2]
[401301270,1768119038196,-948.31541455,8.472e-05,2]
[401301271,1768119038221,-900915.94603048,8.472e-05,2]
[401301272,1768119038231,-50000.0,8.572e-05,2]
[401301273,1768119038240,-500.0,8.572e-05,2]
[401301274,1768119038250,-500.0,8.572e-05,2]
[401301275,1768119038260,-500.0,8.572e-05,2]
[401301276,1768119038270,-500.0,8.572e-05,2]
[401301277,1768119038279,-500.0,8.572e-05,2]
[401301278,1768119038289,-500.0,8.572e-05,2]
[401301279,1768119038299,-500.0,8.572e-05,2]
[401301280,1768119038309,-500.0,8.572e-05,2]
[401301281,1768119038319,-500.0,8.572e-05,2]
[401301282,1768119038329,-500.0,8.572e-05,2]
[401301283,1768119038339,-500.0,8.572e-05,2]
[401301284,1768119038348,-500.0,8.572e-05,2]
[401301285,1768119038358,-500.0,8.572e-05,2]
[401301286,1768119038367,-500.0,8.572e-05,2]
[401301287,1768119038376,-3588.20550989,8.572e-05,2]
[401301288,1768119038386,-672.9,8.6e-05,2]
[401301289,1768119038395,-300.0,8.742e-05,2]
[401301290,1768119038404,-300.0,8.742e-05,2]
[401301291,1768119038414,-300.0,8.742e-05,2]
[401301292,1768119038424,-300.0,8.742e-05,2]
[401301293,1768119038433,-300.0,8.742e-05,2]
[401301294,1768119038443,-300.0,8.742e-05,2]
[401301295,1768119038452,-300.0,8.742e-05,2]
[401301296,1768119038462,-300.0,8.742e-05,2]
[401301297,1768119038472,-300.0,8.742e-05,2]
[401301298,1768119038486,-300.0,8.742e-05,2]
[401301299,1768119038496,-300.0,8.742e-05,2]
[401301300,1768119038505,-300.0,8.742e-05,2]
[401301301,1768119038514,-300.0,8.742e-05,2]
[401301302,1768119038523,-300.0,8.742e-05,2]
[401301303,1768119038533,-300.0,8.742e-05,2]
[401301304,1768119038544,-600.0,8.742e-05,2]
[401301305,1768119038554,-672.9,9.1e-05,2]
[401301306,1768119038563,-672.9,9.6e-05,2]
[401301307,1768119038577,-720.0,9.616e-05,2]
[401301308,1768119038586,-500.51191791,9.692e-05,2]
[401301309,1768119038595,-500.0,9.726e-05,2]
[401301310,1768119038604,-176.23516734,9.726e-05,2]
[401301311,1768119038614,-500.0,9.726e-05,2]
[401301312,1768119038623,-500.0,9.726e-05,2]
[401301313,1768119038632,-500.0,9.726e-05,2]
[401301314,1768119038642,-171.65605742,9.726e-05,2]
[401301315,1768119038652,-500.0,9.726e-05,2]
[401301316,1768119038661,-283.8218406,9.726e-05,2]
[401301317,1768119038670,-500.0,9.726e-05,2]
[401301318,1768119038679,-2580.0,9.726e-05,2]
[401301319,1768119038689,-190.86169873,9.726e-05,2]
[401301320,1768119038698,-171.51692933,9.726e-05,2]
[401301321,1768119038708,-500.0,9.726e-05,2]
[401301322,1768119038718,-37812.79067005,9.761e-05,2]
[401301323,1768119038727,-500.0,9.863e-05,2]
[401301324,1768119038737,-503.05659276,9.863e-05,2]
[401301325,1768119038746,-598.52490689,9.863e-05,2]
[401301326,1768119038756,-500.0,9.863e-05,2]
[401301327,1768119038765,-500.0,9.863e-05,2]
[401301328,1768119038774,-500.0,9.863e-05,2]
[401301329,1768119038784,-2580.0,9.863e-05,2]
[401301330,1768119038793,-179.07075974,0.0001,2]
[401301331,1768119038802,-500.0,0.0001,2]
[401301332,1768119038811,-500.0,0.0001,2]
[401301333,1768119038821,-500.0,0.0001,2]
[401301334,1768119038830,-163.14839871,0.0001,2]
[401301335,1768119038839,-500.0,0.0001,2]
[401301336,1768119038849,-2580.0,0.0001,2]
[401301337,1768119038859,-369.72,0.0001,2]
[401301338,1768119038869,-500.0,0.0001,2]
[401301339,1768119038878,-151.0,0.0001,2]
[401301340,1768119038887,-151.0,0.0001,2]
[401301341,1768119038897,-151.0,0.0001,2]
[401301342,1768119038906,-151.0,0.0001,2]
[401301343,1768119038916,-151.0,0.0001,2]
[401301344,1768119038926,-151.0,0.0001,2]
[401301345,1768119038936,-151.0,0.0001,2]
[401301346,1768119038946,-151.0,0.0001,2]
[401301347,1768119038955,-153.90472729,0.0001,2]
[401301348,1768119038966,-151.0,0.0001,2]
[401301349,1768119038975,-151.0,0.0001,2]
[401301350,1768119038985,-151.0,0.0001,2]
[401301351,1768119038995,-151.0,0.0001,2]
[401301352,1768119039005,-151.0,0.0001,2]
[401301353,1768119039014,-151.0,0.0001,2]
[401301354,1768119039022,-151.0,0.0001,2]
[401301355,1768119039032,-151.0,0.0001,2]
[401301356,1768119039042,-154.07167593,0.0001,2]
[401301357,1768119039052,-672.9,0.000101,2]
[401301358,1768119039061,-500.0,0.00010137,2]
[401301359,1768119039071,-500.0,0.00010137,2]
[401301360,1768119039081,-500.0,0.00010137,2]
[401301361,1768119039090,-500.0,0.00010137,2]
[401301362,1768119039100,-2580.0,0.00010137,2]
[401301363,1768119039111,-263.97622948,0.00010274,2]
[401301364,1768119039121,-483.81749546,0.00010274,2]
[401301365,1768119039131,-500.0,0.00010274,2]
[401301366,1768119039140,-264.95729538,0.00010274,2]
[401301367,1768119039150,-500.0,0.00010274,2]
[401301368,1768119039159,-537.35985221,0.00010274,2]
[401301369,1768119039170,-2580.0,0.00010274,2]
[401301370,1768119039180,-500.0,0.00010274,2]
[401301371,1768119039190,-369.72,0.00010274,2]
[401301372,1768119039200,-500.0,0.00010411,2]
[401301373,1768119039210,-500.0,0.00010411,2]
[401301374,1768119039219,-2580.0,0.00010411,2]
[401301375,1768119039229,-672.9,0.000105,2]
[401301376,1768119039239,-335.27,0.000105,2]
[401301377,1768119039249,-335.27,0.000105,2]
[401301378,1768119039259,-335.27,0.000105,2]
[401301379,1768119039268,-335.27,0.000105,2]
[401301380,1768119039278,-335.27,0.000105,2]
[401301381,1768119039288,-335.27,0.000105,2]
[401301382,1768119039298,-335.27,0.000105,2]
[401301383,1768119039307,-500.0,0.00010548,2]
[401301384,1768119039317,-500.0,0.00010548,2]
[401301385,1768119039327,-2580.0,0.00010548,2]